fUST/lending_fUST_20241220
["ID","MTS","AMOUNT","RATE_DAILY","PERIOD"]
[346080782,1734694254097,-500.0,0.00023013,6]
[346080783,1734694254106,-500.0,0.00023013,6]
[346080784,1734694254115,-719.46,0.00023013,6]
[346080785,1734694254125,-1463.71,0.00023013,6]
[346080786,1734694254134,-500.0,0.00023013,6]
[346080787,1734694254144,-1230.09,0.00023013,6]
[346080788,1734694254162,-1189.93,0.00023013,6]
[346080789,1734694254189,-579.49,0.00023013,6]
[346080790,1734694254202,-754.73,0.00023013,6]
[346080791,1734694254211,-500.0,0.00023013,6]
[346080792,1734694254221,-786.11,0.00023013,6]
[346080793,1734694254231,-500.0,0.00023013,6]
[346080794,1734694254241,-500.0,0.00023013,6]
[346080795,1734694254250,-849.68,0.00023013,6]
[346080796,1734694254260,-513.51,0.00023013,6]
[346080797,1734694254270,-500.0,0.00023013,6]
[346080798,1734694254280,-500.0,0.00023013,6]
[346080799,1734694254289,-500.0,0.00023013,6]
[346080800,1734694254299,-1646.32,0.00023013,6]
[346080801,1734694254308,-705.68,0.00023013,6]
[346080802,1734694254318,-500.0,0.00023013,6]
[346080803,1734694254327,-500.0,0.00023013,6]
[346080804,1734694254337,-500.0,0.00023013,6]
[346080805,1734694254346,-500.0,0.00023013,6]
[346080806,1734694254357,-500.0,0.00023013,6]
[346080807,1734694254367,-500.0,0.00023013,6]
[346080808,1734694254376,-500.0,0.00023013,6]
[346080809,1734694254386,-500.0,0.00023013,6]
[346080810,1734694254396,-500.0,0.00023013,6]
[346080811,1734694254405,-500.0,0.00023013,6]
[346080812,1734694254418,-500.0,0.00023013,6]
[346080813,1734694254427,-500.0,0.00023013,6]
[346080814,1734694254436,-1545.88,0.00023013,6]
[346080815,1734694254445,-233.85,0.00023013,6]
[346080816,1734694254454,-857.37,0.00023013,6]
[346080817,1734694254464,-542.12,0.00023013,6]
[346080818,1734694254474,-500.0,0.00023013,6]
[346080819,1734694254484,-500.0,0.00023013,6]
[346080820,1734694254493,-500.0,0.00023013,6]
[346080821,1734694254503,-500.0,0.00023013,6]
[346080822,1734694254512,-500.0,0.00023013,6]
[346080823,1734694254522,-500.0,0.00023013,6]
[346080824,1734694254531,-500.0,0.00023013,6]
[346080825,1734694254541,-500.0,0.00023013,6]
[346080826,1734694254550,-1524.16,0.00023013,6]
[346080827,1734694254559,-500.0,0.00023013,6]
[346080828,1734694254569,-1969.15,0.00023013,6]
[346080829,1734694254578,-500.0,0.00023013,6]
[346080830,1734694254587,-666.77,0.00023013,6]
[346080831,1734694254597,-1678.97,0.00023013,6]
[346080832,1734694254607,-1221.42,0.00023013,6]
[346080833,1734694254616,-500.0,0.00023013,6]
[346080834,1734694254627,-919.53,0.00023013,6]
[346080835,1734694254637,-500.0,0.00023013,6]
[346080836,1734694254648,-444.32406698,0.00023013,6]
[346080837,1734694254661,-500.0,0.00023013,6]
[346080838,1734694254671,-1954.57,0.00023013,6]
[346080839,1734694254681,-530.11,0.00023013,6]
[346080840,1734694254691,-1371.09,0.00023013,6]
[346080841,1734694254700,-570.76,0.00023013,6]
[346080842,1734694254710,-500.0,0.00023013,6]
[346080843,1734694254719,-500.0,0.00023013,6]
[346080844,1734694254729,-500.0,0.00023013,6]
[346080845,1734694254738,-647.7,0.00023013,6]
[346080846,1734694254748,-659.11,0.00023013,6]
[346080847,1734694254757,-1365.85,0.00023013,6]
[346080848,1734694254767,-500.0,0.00023013,6]
[346080849,1734694254776,-997.07,0.00023013,6]
[346080850,1734694254785,-1861.38,0.00023013,6]
[346080851,1734694254794,-500.0,0.00023013,6]
[346080852,1734694254805,-500.0,0.00023013,6]
[346080853,1734694254816,-544.52,0.00023013,6]
[346080854,1734694254825,-500.0,0.00023013,6]
[346080855,1734694254835,-541.67,0.00023013,6]
[346080856,1734694254845,-667.64,0.00023013,6]
[346080857,1734694254855,-532.84,0.00023013,6]
[346080858,1734694254865,-516.21202182,0.00023013,6]
[346080859,1734694254874,-538.95001214,0.00023013,6]
[346080860,1734694254885,-1142.47,0.00023013,6]
[346080861,1734694254895,-500.0,0.00023013,6]
[346080862,1734694254905,-551.66,0.00023013,6]
[346080863,1734694254917,-500.0,0.00023013,6]
[346080864,1734694254927,-1761.45,0.00023013,6]
[346080865,1734694254937,-500.0,0.00023013,6]
[346080866,1734694254947,-500.0,0.00023013,6]
[346080867,1734694254957,-500.0,0.00023013,6]
[346080868,1734694254966,-507.56,0.00023013,6]
[346080869,1734694254976,-500.0,0.00023013,6]
[346080870,1734694254986,-675.29,0.00023013,6]
[346080871,1734694254996,-515.72,0.00023013,6]
[346080872,1734694255006,-571.63,0.00023013,6]
[346080873,1734694255016,-500.0,0.00023013,6]
[346080874,1734694255026,-500.0,0.00023013,6]
[346080875,1734694255036,-558.46,0.00023013,6]
[346080876,1734694255046,-761.12,0.00023013,6]
[346080877,1734694255055,-2681.03,0.00023013,6]
[346080878,1734694255065,-1074.72,0.00023013,6]
[346080879,1734694255075,-500.0,0.00023013,6]
[346080880,1734694255084,-500.0,0.00023013,6]
[346080881,1734694255095,-942.86,0.00023013,6]
[346080882,1734694255106,-990.71,0.00023013,6]
[346080883,1734694255117,-1154.59,0.00023013,6]
[346080884,1734694255127,-500.0,0.00023013,6]
[346080885,1734694255137,-593.74,0.00023013,6]
[346080886,1734694255146,-500.0,0.00023013,6]
[346080887,1734694255156,-879.16,0.00023013,6]
[346080888,1734694255168,-1799.03,0.00023013,6]
[346080889,1734694255178,-500.0,0.00023013,6]
[346080890,1734694255187,-4685.48,0.00023013,6]
[346080891,1734694255198,-908.05,0.00023013,2]
[346080892,1734694255208,-2938.15,0.00023013,6]
[346080893,1734694255218,-500.0,0.00023013,6]
[346080894,1734694255228,-308.14459139,0.00023013,6]
[346080895,1734694255238,-1116.74,0.00023013,6]
[346080896,1734694255247,-500.0,0.00023013,6]
[346080897,1734694255257,-500.0,0.00023013,6]
[346080898,1734694255267,-2325.47,0.00023013,6]
[346080899,1734694255277,-558.81,0.00023013,6]
[346080900,1734694255287,-268.98357944,0.00023013,6]
[346080901,1734694255297,-1646.13,0.00023013,6]
[346080902,1734694255307,-11962.96,0.00023013,6]
[346080903,1734694255317,-500.0,0.00023013,6]
[346080904,1734694255327,-500.0,0.00023013,6]
[346080905,1734694255336,-47981.61,0.00023013,6]
[346080906,1734694255346,-500.0,0.00023013,6]
[346080907,1734694255356,-500.0,0.00023013,6]
[346080908,1734694255366,-500.0,0.00023013,6]
[346080909,1734694255376,-500.0,0.00023013,6]
[346080910,1734694255385,-856.87,0.00023013,6]
[346080911,1734694255395,-500.0,0.00023013,6]
[346080912,1734694255404,-500.0,0.00023013,6]
[346080913,1734694255417,-500.0,0.00023013,6]
[346080914,1734694255426,-13094.31,0.00023013,6]
[346080915,1734694255436,-1008.27,0.00023013,6]
[346080916,1734694255446,-500.0,0.00023013,6]
[346080917,1734694255456,-500.0,0.00023013,6]
[346080918,1734694255466,-500.0,0.00023013,6]
[346080919,1734694255475,-586.91,0.00023013,6]
[346080920,1734694255486,-500.0,0.00023013,6]
[346080921,1734694255496,-599.08,0.00023013,6]
[346080922,1734694255506,-3250.6,0.00023013,6]
[346080923,1734694255516,-500.0,0.00023013,6]
[346080924,1734694255526,-1929.64,0.00023013,6]
[346080925,1734694255536,-500.0,0.00023013,6]
[346080926,1734694255546,-6353.3,0.00023013,6]
[346080927,1734694255556,-3613.08,0.00023013,6]
[346080928,1734694255566,-699.51,0.00023013,6]
[346080929,1734694255575,-11618.82,0.00023013,6]
[346080930,1734694255585,-500.0,0.00023013,6]
[346080931,1734694255595,-522.89,0.00023013,6]
[346080932,1734694255605,-500.0,0.00023013,6]
[346080933,1734694255614,-890.01,0.00023013,6]
[346080934,1734694255624,-3149.43,0.00023013,6]
[346080935,1734694255634,-500.0,0.00023013,6]
[346080936,1734694255849,-500.0,0.00023013,6]
[346080937,1734694255867,-500.0,0.00023013,6]
[346080938,1734694255876,-1610.1,0.00023013,6]
[346080939,1734694255888,-2966.71,0.00023013,6]
[346080940,1734694255898,-622.97,0.00023013,6]
[346080941,1734694255907,-500.0,0.00023013,6]
[346080942,1734694255919,-19666.42,0.00023013,6]
[346080943,1734694255928,-559.45,0.00023013,6]
[346080944,1734694255938,-1311.68,0.00023013,6]
[346080945,1734694255948,-500.0,0.00023013,6]
[346080946,1734694255958,-566.79,0.00023013,6]
[346080947,1734694255967,-745.45,0.00023013,6]
[346080948,1734694255977,-704.77,0.00023013,6]
[346080949,1734694255987,-596.95,0.00023013,6]
[346080950,1734694255997,-500.0,0.00023013,6]
[346080951,1734694256006,-500.0,0.00023013,6]
[346080952,1734694256015,-500.0,0.00023013,6]
[346080953,1734694256025,-3063.18,0.00023013,6]
[346080954,1734694256034,-500.0,0.00023013,6]
[346080955,1734694256044,-690.48,0.00023013,6]
[346080956,1734694256054,-500.0,0.00023013,6]
[346080957,1734694256063,-500.0,0.00023013,6]
[346080958,1734694256073,-500.0,0.00023013,6]
[346080959,1734694256083,-618.24,0.00023013,6]
[346080960,1734694256092,-500.0,0.00023013,6]
[346080961,1734694256102,-596.24,0.00023013,6]
[346080962,1734694256111,-1042.28,0.00023013,6]
[346080963,1734694256120,-669.3,0.00023013,6]
[346080964,1734694256130,-6968.41,0.00023013,6]
[346080965,1734694256139,-1173.52,0.00023013,6]
[346080966,1734694256148,-1358.68,0.00023013,6]
[346080967,1734694256157,-5013.94,0.00023013,2]
[346080968,1734694256170,-4843.52,0.00023013,6]
[346080969,1734694256179,-500.0,0.00023013,6]
[346080970,1734694256190,-1197.34,0.00023013,6]
[346080971,1734694256199,-2776.19,0.00023013,6]
[346080972,1734694256209,-3958.45,0.00023013,6]
[346080973,1734694256218,-500.0,0.00023013,6]
[346080974,1734694256227,-3361.23,0.00023013,6]
[346080975,1734694256237,-2543.32,0.00023013,6]
[346080976,1734694256246,-500.0,0.00023013,6]
[346080977,1734694256255,-6271.99,0.00023013,6]
[346080978,1734694256265,-3140.07,0.00023013,6]
[346080979,1734694256274,-1253.7,0.00023013,6]
[346080980,1734694256284,-500.0,0.00023013,6]
[346080981,1734694256293,-701.21,0.00023013,6]
[346080982,1734694256302,-674.87,0.00023013,6]
[346080983,1734694256311,-1029.79,0.00023013,6]
[346080984,1734694256321,-500.03,0.00023013,6]
[346080985,1734694256330,-500.0,0.00023013,6]
[346080986,1734694256339,-500.0,0.00023013,6]
[346080987,1734694256348,-1676.26,0.00023013,6]
[346080988,1734694256358,-517.63,0.00023013,6]
[346080989,1734694256367,-500.0,0.00023013,6]
[346080990,1734694256376,-2596.31,0.00023013,6]
[346080991,1734694256386,-359.29819433,0.00023013,6]
[346080992,1734694256395,-890.04,0.00023013,6]
[346080993,1734694256404,-1816.44,0.00023013,6]
[346080994,1734694256417,-500.0,0.00023013,6]
[346080995,1734694256427,-567.12,0.00023013,6]
[346080996,1734694256436,-2920.79,0.00023013,6]
[346080997,1734694256445,-500.0,0.00023013,6]
[346080998,1734694256456,-500.0,0.00023013,6]
[346080999,1734694256465,-1271.47,0.00023013,6]
[346081000,1734694256475,-873.66,0.00023013,6]
[346081001,1734694256485,-799.21,0.00023013,6]
[346081002,1734694256494,-604.44,0.00023013,6]
[346081003,1734694256504,-153.0,0.00023014,2]
[346081004,1734694256514,-464.7381809,0.00023076,2]
[346081005,1734694256523,-162.53420572,0.00023097,8]
[346081006,1734694256533,-507.21096736,0.00023097,8]
[346081007,1734694256543,-420.0,0.00023099,2]
[346081008,1734694256554,-2000.0,0.000231,2]
[346081009,1734694256564,-151.0,0.000231,9]
[346081010,1734694256574,-232.0,0.0002314,10]
[346081011,1734694256584,-464.178,0.0002316,2]
[346081012,1734694256595,-151.0,0.000232,5]
[346081013,1734694256604,-1000.0,0.00023236,2]
[346081014,1734694256614,-14725.90274077,0.00023266,10]
[346081015,1734694256623,-500.0,0.00023287,6]
[346081016,1734694256633,-561.26,0.00023287,6]
[346081017,1734694256642,-500.0,0.00023287,6]
[346081018,1734694256652,-500.0,0.00023287,6]
[346081019,1734694256664,-518.93359644,0.00023287,6]
[346081020,1734694256674,-500.0,0.00023287,6]
[346081021,1734694256684,-500.0,0.00023287,6]
[346081022,1734694256695,-500.0,0.00023287,6]
[346081023,1734694256704,-500.0,0.00023287,6]
[346081024,1734694256715,-955.43,0.00023287,6]
[346081025,1734694256724,-500.0,0.00023287,6]
[346081026,1734694256733,-500.0,0.00023287,6]
[346081027,1734694256743,-500.0,0.00023287,6]
[346081028,1734694256752,-200.0,0.00023287,6]
[346081029,1734694256762,-500.0,0.00023287,6]
[346081030,1734694256771,-413.97156798,0.00023287,6]
[346081031,1734694256781,-500.0,0.00023287,6]
[346081032,1734694256790,-500.0,0.00023287,6]
[346081033,1734694256800,-500.0,0.00023287,6]
[346081034,1734694256809,-500.0,0.00023287,6]
[346081035,1734694256823,-1314.43,0.00023287,6]
[346081036,1734694256832,-500.0,0.00023287,6]
[346081037,1734694256841,-500.0,0.00023287,6]
[346081038,1734694256851,-582.5,0.00023287,6]
[346081039,1734694256861,-867.18,0.00023287,6]
[346081040,1734694256870,-500.0,0.00023287,6]
[346081041,1734694256880,-500.0,0.00023287,6]
[346081042,1734694256895,-257.09456218,0.00023287,6]
[346081043,1734694256904,-500.0,0.00023287,6]
[346081044,1734694256918,-500.0,0.00023287,6]
[346081045,1734694256928,-500.0,0.00023287,6]
[346081046,1734694256937,-500.0,0.00023287,6]
[346081047,1734694256947,-500.0,0.00023287,6]
[346081048,1734694256956,-500.0,0.00023287,6]
[346081049,1734694256965,-500.0,0.00023287,6]
[346081050,1734694256975,-576.5,0.00023287,6]
[346081051,1734694256985,-500.0,0.00023287,6]
[346081052,1734694256994,-1212.24,0.00023287,6]
[346081053,1734694257004,-709.1,0.00023287,6]
[346081054,1734694257013,-615.09054119,0.00023287,6]
[346081055,1734694257023,-507.75,0.00023287,6]
[346081056,1734694257032,-500.0,0.00023287,6]
[346081057,1734694257042,-500.0,0.00023287,6]
[346081058,1734694257051,-500.0,0.00023287,6]
[346081059,1734694257061,-500.0,0.00023287,6]
[346081060,1734694257071,-500.0,0.00023287,6]
[346081061,1734694257080,-500.0,0.00023287,6]
[346081062,1734694257089,-500.0,0.00023287,6]
[346081063,1734694257098,-500.0,0.00023287,6]
[346081064,1734694257108,-500.0,0.00023287,6]
[346081065,1734694257117,-500.0,0.00023287,6]
[346081066,1734694257126,-871.2,0.00023287,6]
[346081067,1734694257136,-500.0,0.00023287,6]
[346081068,1734694257147,-706.49,0.00023287,6]
[346081069,1734694257156,-500.0,0.00023287,6]
[346081070,1734694257169,-500.0,0.00023287,6]
[346081071,1734694257179,-500.0,0.00023287,6]
[346081072,1734694257189,-500.0,0.00023287,6]
[346081073,1734694257198,-719.46,0.00023287,6]
[346081074,1734694257207,-1463.71,0.00023287,6]
[346081075,1734694257217,-500.0,0.00023287,6]
[346081076,1734694257227,-1230.09,0.00023287,6]
[346081077,1734694257236,-1189.93,0.00023287,6]
[346081078,1734694257246,-579.49,0.00023287,6]
[346081079,1734694257255,-754.73,0.00023287,6]
[346081080,1734694257264,-500.0,0.00023287,6]
[346081081,1734694257273,-786.11,0.00023287,6]
[346081082,1734694257282,-500.0,0.00023287,6]
[346081083,1734694257292,-500.0,0.00023287,6]
[346081084,1734694257301,-849.68,0.00023287,6]
[346081085,1734694257310,-513.51,0.00023287,6]
[346081086,1734694257320,-500.0,0.00023287,6]
[346081087,1734694257329,-500.0,0.00023287,6]
[346081088,1734694257338,-500.0,0.00023287,6]
[346081089,1734694257348,-1646.32,0.00023287,6]
[346081090,1734694257357,-705.68,0.00023287,6]
[346081091,1734694257366,-500.0,0.00023287,6]
[346081092,1734694257375,-500.0,0.00023287,6]
[346081093,1734694257386,-500.0,0.00023287,6]
[346081094,1734694257397,-500.0,0.00023287,6]
[346081095,1734694257407,-500.0,0.00023287,6]
[346081096,1734694257418,-500.0,0.00023287,6]
[346081097,1734694257427,-417.8163118,0.00023287,6]
[346081098,1734694257436,-500.0,0.00023287,6]
[346081099,1734694257446,-500.0,0.00023287,6]
[346081100,1734694257456,-500.0,0.00023287,6]
[346081101,1734694257468,-500.0,0.00023287,6]
[346081102,1734694257477,-500.0,0.00023287,6]
[346081103,1734694257486,-1545.88,0.00023287,6]
[346081104,1734694257496,-233.85,0.00023287,6]
[346081105,1734694257506,-857.37,0.00023287,6]
[346081106,1734694257515,-542.12,0.00023287,6]
[346081107,1734694257525,-500.0,0.00023287,6]
[346081108,1734694257534,-423.22931254,0.00023287,6]
[346081109,1734694257543,-500.0,0.00023287,6]
[346081110,1734694257553,-500.0,0.00023287,6]
[346081111,1734694257562,-500.0,0.00023287,6]
[346081112,1734694257571,-500.0,0.00023287,6]
[346081113,1734694257581,-500.0,0.00023287,6]
[346081114,1734694257590,-500.0,0.00023287,6]
[346081115,1734694257600,-1524.16,0.00023287,6]
[346081116,1734694257611,-500.0,0.00023287,6]
[346081117,1734694257620,-1969.15,0.00023287,6]
[346081118,1734694257629,-500.0,0.00023287,6]
[346081119,1734694257638,-666.77,0.00023287,6]
[346081120,1734694257648,-1678.97,0.00023287,6]
[346081121,1734694257657,-1221.42,0.00023287,6]
[346081122,1734694257668,-500.0,0.00023287,6]
[346081123,1734694257677,-919.53,0.00023287,6]
[346081124,1734694257686,-621.5254491,0.00023287,6]
[346081125,1734694257695,-500.0,0.00023287,6]
[346081126,1734694257705,-1954.57,0.00023287,6]
[346081127,1734694257714,-530.11,0.00023287,6]
[346081128,1734694257723,-1371.09,0.00023287,6]
[346081129,1734694257732,-570.76,0.00023287,6]
[346081130,1734694257742,-500.0,0.00023287,6]
[346081131,1734694257751,-500.0,0.00023287,6]
[346081132,1734694257760,-500.0,0.00023287,6]
[346081133,1734694257769,-647.7,0.00023287,6]
[346081134,1734694257779,-659.11,0.00023287,6]
[346081135,1734694257788,-1365.85,0.00023287,6]
[346081136,1734694257798,-500.0,0.00023287,6]
[346081137,1734694257812,-997.07,0.00023287,6]
[346081138,1734694257821,-1861.38,0.00023287,6]
[346081139,1734694257831,-500.0,0.00023287,6]
[346081140,1734694257840,-500.0,0.00023287,6]
[346081141,1734694257850,-544.52,0.00023287,6]
[346081142,1734694257859,-500.0,0.00023287,6]
[346081143,1734694257868,-667.64,0.00023287,6]
[346081144,1734694257877,-541.67,0.00023287,6]
[346081145,1734694257886,-532.84,0.00023287,6]
[346081146,1734694257896,-1142.47,0.00023287,6]
[346081147,1734694257906,-500.0,0.00023287,6]
[346081148,1734694257917,-551.66,0.00023287,6]
[346081149,1734694257926,-500.0,0.00023287,6]
[346081150,1734694257935,-1761.45,0.00023287,6]
[346081151,1734694257944,-500.0,0.00023287,6]
[346081152,1734694257954,-500.0,0.00023287,6]
[346081153,1734694257963,-500.0,0.00023287,6]
[346081154,1734694257973,-607.22,0.00023287,9]
[346081155,1734694257982,-507.56,0.00023287,6]
[346081156,1734694257991,-500.0,0.00023287,6]
[346081157,1734694258001,-675.29,0.00023287,6]
[346081158,1734694258010,-515.72,0.00023287,6]
[346081159,1734694258019,-571.63,0.00023287,6]
[346081160,1734694258029,-500.0,0.00023287,6]
[346081161,1734694258039,-500.0,0.00023287,6]
[346081162,1734694258048,-558.46,0.00023287,6]
[346081163,1734694258057,-761.12,0.00023287,6]
[346081164,1734694258067,-2681.03,0.00023287,6]
[346081165,1734694258076,-1074.72,0.00023287,6]
[346081166,1734694258085,-500.0,0.00023287,6]
[346081167,1734694258095,-500.0,0.00023287,6]
[346081168,1734694258104,-942.86,0.00023287,6]
[346081169,1734694258114,-990.71,0.00023287,6]
[346081170,1734694258123,-1154.59,0.00023287,6]
[346081171,1734694258132,-500.0,0.00023287,6]
[346081172,1734694258141,-593.74,0.00023287,6]
[346081173,1734694258150,-500.0,0.00023287,6]
[346081174,1734694258203,-879.16,0.00023287,6]
[346081175,1734694258212,-1799.03,0.00023287,6]
[346081176,1734694258222,-500.0,0.00023287,6]
[346081177,1734694258231,-4685.48,0.00023287,6]
[346081178,1734694258241,-2938.15,0.00023287,6]
[346081179,1734694258250,-908.05,0.00023287,2]
[346081180,1734694258259,-500.0,0.00023287,6]
[346081181,1734694258268,-1116.74,0.00023287,6]
[346081182,1734694258277,-500.0,0.00023287,6]
[346081183,1734694258287,-500.0,0.00023287,6]
[346081184,1734694258295,-2325.47,0.00023287,6]
[346081185,1734694258305,-558.81,0.00023287,6]
[346081186,1734694258314,-1646.13,0.00023287,6]
[346081187,1734694258323,-11962.96,0.00023287,6]
[346081188,1734694258332,-500.0,0.00023287,6]
[346081189,1734694258342,-500.0,0.00023287,6]
[346081190,1734694258352,-47981.61,0.00023287,6]
[346081191,1734694258362,-500.0,0.00023287,6]
[346081192,1734694258371,-500.0,0.00023287,6]
[346081193,1734694258380,-500.0,0.00023287,6]
[346081194,1734694258390,-500.0,0.00023287,6]
[346081195,1734694258399,-856.87,0.00023287,6]
[346081196,1734694258408,-500.0,0.00023287,6]
[346081197,1734694258420,-500.0,0.00023287,6]
[346081198,1734694258430,-500.0,0.00023287,6]
[346081199,1734694258440,-13094.31,0.00023287,6]
[346081200,1734694258449,-1008.27,0.00023287,6]
[346081201,1734694258459,-500.0,0.00023287,6]
[346081202,1734694258468,-500.0,0.00023287,6]
[346081203,1734694258477,-500.0,0.00023287,6]
[346081204,1734694258486,-586.91,0.00023287,6]
[346081205,1734694258495,-500.0,0.00023287,6]
[346081206,1734694258504,-599.08,0.00023287,6]
[346081207,1734694258514,-3250.6,0.00023287,6]
[346081208,1734694258523,-500.0,0.00023287,6]
[346081209,1734694258533,-1929.64,0.00023287,6]
[346081210,1734694258542,-500.0,0.00023287,6]
[346081211,1734694258551,-6353.3,0.00023287,6]
[346081212,1734694258560,-3613.08,0.00023287,6]
[346081213,1734694258569,-699.51,0.00023287,6]
[346081214,1734694258578,-11618.82,0.00023287,6]
[346081215,1734694258587,-500.0,0.00023287,6]
[346081216,1734694258597,-522.89,0.00023287,6]
[346081217,1734694258606,-500.0,0.00023287,6]
[346081218,1734694258615,-890.01,0.00023287,6]
[346081219,1734694258624,-3149.43,0.00023287,6]
[346081220,1734694258634,-500.0,0.00023287,6]
[346081221,1734694258643,-500.0,0.00023287,6]
[346081222,1734694258652,-188.8464176,0.00023287,6]
[346081223,1734694258664,-1610.1,0.00023287,6]
[346081224,1734694258674,-2966.71,0.00023287,6]
[346081225,1734694258685,-622.97,0.00023287,6]
[346081226,1734694258695,-500.0,0.00023287,6]
[346081227,1734694258704,-19666.42,0.00023287,6]
[346081228,1734694258714,-559.45,0.00023287,6]
[346081229,1734694258723,-1311.68,0.00023287,6]
[346081230,1734694258732,-500.0,0.00023287,6]
[346081231,1734694258742,-566.79,0.00023287,6]
[346081232,1734694258751,-745.45,0.00023287,6]
[346081233,1734694258761,-704.77,0.00023287,6]
[346081234,1734694258771,-596.95,0.00023287,6]
[346081235,1734694258780,-500.0,0.00023287,6]
[346081236,1734694258790,-500.0,0.00023287,6]
[346081237,1734694258799,-500.0,0.00023287,6]
[346081238,1734694258809,-3063.18,0.00023287,6]
[346081239,1734694258822,-500.0,0.00023287,6]
[346081240,1734694258831,-690.48,0.00023287,6]
[346081241,1734694258840,-500.0,0.00023287,6]
[346081242,1734694258849,-500.0,0.00023287,6]
[346081243,1734694258860,-500.0,0.00023287,6]
[346081244,1734694258870,-618.24,0.00023287,6]
[346081245,1734694258879,-500.0,0.00023287,6]
[346081246,1734694258889,-596.24,0.00023287,6]
[346081247,1734694258898,-1042.28,0.00023287,6]
[346081248,1734694258906,-669.3,0.00023287,6]
[346081249,1734694258917,-6968.41,0.00023287,6]
[346081250,1734694258927,-1173.52,0.00023287,6]
[346081251,1734694258936,-2792.87,0.00023287,4]
[346081252,1734694258945,-1358.68,0.00023287,6]
[346081253,1734694258954,-5013.94,0.00023287,2]
[346081254,1734694258963,-4843.52,0.00023287,6]
[346081255,1734694258972,-500.0,0.00023287,6]
[346081256,1734694258981,-1197.34,0.00023287,6]
[346081257,1734694258990,-2776.19,0.00023287,6]
[346081258,1734694259000,-3958.45,0.00023287,6]
[346081259,1734694259009,-500.0,0.00023287,6]
[346081260,1734694259018,-3361.23,0.00023287,6]
[346081261,1734694259027,-2543.32,0.00023287,6]
[346081262,1734694259036,-500.0,0.00023287,6]
[346081263,1734694259045,-6271.99,0.00023287,6]
[346081264,1734694259054,-3140.07,0.00023287,6]
[346081265,1734694259063,-1253.7,0.00023287,6]
[346081266,1734694259072,-500.0,0.00023287,6]
[346081267,1734694259082,-701.21,0.00023287,6]
[346081268,1734694259091,-674.87,0.00023287,6]
[346081269,1734694259100,-1029.79,0.00023287,6]
[346081270,1734694259109,-500.03,0.00023287,6]
[346081271,1734694259119,-500.0,0.00023287,6]
[346081272,1734694259128,-500.0,0.00023287,6]
[346081273,1734694259138,-1676.26,0.00023287,6]
[346081274,1734694259147,-517.63,0.00023287,6]
[346081275,1734694259156,-500.0,0.00023287,6]
[346081276,1734694259167,-2596.31,0.00023287,6]
[346081277,1734694259177,-890.04,0.00023287,6]
[346081278,1734694259186,-1816.44,0.00023287,6]
[346081279,1734694259195,-500.0,0.00023287,6]
[346081280,1734694259204,-567.12,0.00023287,6]
[346081281,1734694259214,-2920.79,0.00023287,6]